Cogmind - Beta 9.1 @@@ ROGUE MODE // 2019.11.01 @ 16:34:09 Player: MrPainting Result: Destroyed by H-55 Commando with Gauss Rifle Performance ------------- Evolutions (0) 0 Regions Visited (3) 600 Robots Destroyed (51) 255 Value Destroyed (1379) 1379 Prototype IDs (3) 60 Alien Tech Used (0) 0 Bonus (300) 300 TOTAL SCORE: 2594 Bonus ------- Aligned with FarCom 300 Cogmind --------- Core Integrity 0/250 Matter 145/300 Energy 73/100 System Corruption 4% Temperature Cool (1) Location -10/Exiles Parts ------- Power (1) Propulsion (2) Light Treads Utility (2) High-capacity Storage Unit Light Armor Plating Weapon (2) AWS/Gauss Inventory (12) Light Nuclear Core Improved Heat Sink High-capacity Storage Unit Humpback Superbattery (2000) High-capacity Matter Pod (26) Visual Processing Unit Targeting Computer Propulsion Shielding Rocket Launcher Rocket Launcher Peak State ------------ Power Light Nuclear Core Propulsion Light Treads Light Treads Utility High-capacity Storage Unit High-capacity Storage Unit Weapon AWS/Gauss Inventory Light Nuclear Core Improved Heat Sink Humpback Superbattery High-capacity Matter Pod Visual Processing Unit Targeting Computer Propulsion Shielding Light Armor Plating Rocket Launcher Rocket Launcher Rocket Launcher Rocket Launcher Rocket Launcher Rocket Launcher Rocket Launcher [Rating: 26] Favorites ----------- Power Ion Engine Engine Ion Engine Power Core Light Nuclear Core Propulsion Light Treads Treads Light Treads Leg Aluminum Leg Utility High-capacity Storage Unit Storage High-capacity Storage Unit Protection Light Armor Plating Weapon Improved Light Cannon Ballistic Gun Assault Rifle Ballistic Cannon Improved Light Cannon Launcher Rocket Launcher Special Weapon Field Lobotomy Kit Build | -11 -10 -10 -10 ------- Run | Scr Mat Min Exi Slots Evolved . | . . . . Power . | . . . . Propulsion . | . . . . Utility . | . . . . Weapon . | . . . . Parts Attached 45 | 7 26 1 11 Power 3 | 1 1 1 . Engine 2 | 1 1 . . Core 1 | . . 1 . Reactor . | . . . . Propulsion 7 | 2 4 . 1 Treads 5 | . 4 . 1 Leg 2 | 2 . . . Wheel . | . . . . Hover . | . . . . Flight . | . . . . Utility 14 | 2 8 . 4 Device . | . . . . Storage 13 | 2 8 . 3 Processor . | . . . . Hackware . | . . . . Protection 1 | . . . 1 Artifact . | . . . . Weapon 21 | 2 13 . 6 Energy Gun . | . . . . Energy Cannon . | . . . . Ballistic Gun 4 | 2 . . 2 Ballistic Cannon 9 | . 8 . 1 Launcher 7 | . 5 . 2 Special Weapon 1 | . . . 1 Impact Weapon . | . . . . Slashing Weapon . | . . . . Piercing Weapon . | . . . . Special Melee Weapon . | . . . . Unidentified Prototypes 3 | . . . 3 Parts Lost 6 | . 3 . 3 Power 2 | . 1 . 1 Propulsion 3 | . 1 . 2 Utility . | . . . . Weapon 1 | . 1 . . Highest Loss Streak 3 | . 2 . 3 Average Slot Usage (%) 96 | . 98 100 90 Engine 9 | . 14 9 . Core 4 | . . 4 11 Treads 26 | . 27 28 23 Storage 27 | . 27 28 27 Ballistic Cannon 23 | . 21 28 20 Launcher 3 | . 4 . 4 Naked Turns . | . . . . Heaviest Build 79 | 17 77 77 79 Greatest Support 40 | 20 40 40 40 Greatest Overweight (x) 23 | . 2 1 23 Average Overweight (x) . | . . 1 1 Largest Inventory Capacity 20 | 8 20 20 20 Average Capacity 17 | 5 14 20 19 Most Carried 20 | 6 20 20 20 Average Carried 14 | 4 11 19 18 Final Capacity 20 | 8 20 20 12 Final Carried 20 | 6 20 19 12 Class Distribution -------------------- 68% | Hauler-Mutant 31% | Mutant Dominant Class ---------------- Mutant | -10/Materials Hauler-Mutant | -10/Mines Hauler-Mutant | -10/Exiles Resources | -11 -10 -10 -10 ----------- Run | Scr Mat Min Exi Matter Collected 1198 | 318 424 270 186 Remotely . | . . . . Salvage Created 1373 | 120 576 157 520 Parts 96 | 6 51 9 30 Haulers Intercepted 2 | . 2 . . Recyclers Shooed 2 | 1 1 . . Parts Field Recycled . | . . . . Retrieved Matter . | . . . . Parts Self-Destructed . | . . . . Prevented . | . . . . Kills | -11 -10 -10 -10 ------- Run | Scr Mat Min Exi Combat Hostiles Destroyed 34 | . 15 4 15 Guns 7 | . . . 7 Cannons 16 | . 12 4 . AOE 11 | . 3 . 8 Classes Destroyed 13 | 2 7 . 4 Worker 4 | . 4 . . Builder 3 | . 3 . . Tunneler 2 | 2 . . . Hauler 2 | . 2 . . Recycler 3 | 1 1 1 . Operator 1 | . 1 . . Watcher 2 | . 2 . . Swarmer 6 | . 6 . . Grunt 19 | . 9 4 6 Brawler 1 | . . . 1 Duelist 1 | . . . 1 Hunter 3 | . . . 3 Programmer 4 | . . . 4 Best Kill Streak 12 | 3 6 2 12 Combat Bots Only 12 | . 4 2 12 Max Kills in Single Turn 4 | 1 2 1 4 Gunslinging . | . . . . Exploded 4 | . 2 . 4 Melee . | . . . . Uniques/NPCs Destroyed . | . . . . Combat | -11 -10 -10 -10 -------- Run | Scr Mat Min Exi Damage Taken 1654 | . 659 156 839 Core 256 | . 71 12 173 Absorbed by Shields . | . . . . Core Remaining (%) 100 | 100 . . . Volleys Fired 94 | 8 61 20 5 Largest 2 | 2 2 2 2 Hottest 78 | 40 78 78 66 Shots Fired 198 | 16 101 40 41 Gun 47 | 16 . . 31 Cannon 139 | . 99 40 . Launcher 12 | . 2 . 10 Special . | . . . . Kinetic 186 | 16 99 40 31 Thermal . | . . . . Explosive 12 | . 2 . 10 Electromagnetic . | . . . . Robot Hit Streak 13 | 4 13 6 13 Robot Miss Streak 4 | 2 3 4 2 Penetration Max . | . . . . Secondary Targets . | . . . . Autonomous 31 | . . . 31 Shots Hit Robots 128 | 10 62 23 33 Core Hits 60 | 4 29 7 20 Critical Hits 2 | . . 1 1 Critical Kills 1 | . . 1 . Critical Parts Destroyed 1 | . . . 1 Melee Attacks . | . . . . Impact . | . . . . Slashing . | . . . . Piercing . | . . . . Sneak Attacks . | . . . . Combat Hostiles . | . . . . Follow-up Attacks . | . . . . Damage Inflicted 3712 | 147 1520 401 1644 Guns 1044 | 147 . . 897 Cannons 1683 | . 1282 401 . Explosions 979 | . 232 . 747 Melee . | . . . . Ramming 6 | . 6 . . Kinetic 2727 | 147 1282 401 897 Thermal . | . . . . Explosive 979 | . 232 . 747 Electromagnetic . | . . . . Impact . | . . . . Slashing . | . . . . Piercing . | . . . . Highest Corruption 4 | . 1 1 4 Average Corruption 1 | . 1 1 1 Corruption Purged . | . . . . Effects 9 | . 3 2 4 Message Errors 3 | . . 2 1 Matter Fused 2 | . . . 2 Energy Discharges 1 | . 1 . . Data Loss (minor) 2 | . 2 . . Targeting Errors 1 | . . . 1 Overload Shots . | . . . . Overflow Damage 46 | . 11 24 11 Projectiles 35 | . 11 24 . Explosions 11 | . . . 11 Melee . | . . . . Knockbacks 19 | . 12 7 . Impact . | . . . . Kinetic 18 | . 12 6 . Secondary 1 | . . 1 . Self-Inflicted Damage 174 | . 144 . 30 Shots 4 | . 3 . 1 Rammed 1 | . 1 . . Targets Rammed 1 | . 1 . . Kicked . | . . . . Crushed . | . . . . Highest Temperature 204 | . 114 204 40 Average Temperature 39 | . 29 61 27 Received Heat Transfer 306 | . 153 87 66 Siege Activations . | . . . . Robots Corrupted . | . . . . Combat Hostiles . | . . . . Parts Fried . | . . . . Impact Corruptions . | . . . . Robots Melted . | . . . . Combat Hostiles . | . . . . Parts Melted . | . . . . Heat Transferred . | . . . . Parts Sabotaged . | . . . . Parts Stolen . | . . . . Parts Stripped . | . . . . Power Chain Reactions . | . . . . Missiles Intercepted . | . . . . Alert | -11 -10 -10 -10 ------- Run | Scr Mat Min Exi Peak Influence 251 | 15 251 113 . Average Influence 83 | 7 103 62 . Maximum Alert Level 1 | . 1 . . Low Security (%) 94 | . . . . Level 1 5 | . . . . Level 2 . | . . . . Level 3 . | . . . . Level 4 . | . . . . Level 5 . | . . . . High Security . | . . . . Max Security . | . . . . Squads Dispatched 5 | . 5 . . Investigation 2 | . 2 . . Extermination . | . . . . Reinforcement 3 | . 3 . . Assault . | . . . . Garrison . | . . . . Intercept . | . . . . Construction Impeded . | . . . . Haulers Reinforced . | . . . . Stealth | -11 -10 -10 -10 --------- Run | Scr Mat Min Exi Distress Signals . | . . . . Communications Jammed . | . . . . Distress Signals . | . . . . Times Spotted 47 | . 24 5 18 Peak Tracking Total 14 | . 3 2 14 Tactical Retreats 2 | . 1 1 . Traps | -11 -10 -10 -10 ------- Run | Scr Mat Min Exi Traps Triggered 1 | . 1 . . Indirectly . | . . . . Trap Hack Attempts . | . . . . Triggered . | . . . . Disarmed . | . . . . Reprogrammed . | . . . . Reused . | . . . . Traps Extracted . | . . . . Installed . | . . . . Triggered . | . . . . Exploded 1 | . . . 1 Machines | -11 -10 -10 -10 ---------- Run | Scr Mat Min Exi Machines Disabled 8 | . 5 . 3 Max in Single Turn 2 | . 2 . 1 Machines Sabotaged . | . . . . Garrisons Compromised . | . . . . Overloaded Fab Kills . | . . . . Fab Network Shutdowns . | . . . . Hacking | -11 -10 -10 -10 --------- Run | Scr Mat Min Exi Machines Accessed 2 | . 2 . . Terminals 2 | . 2 . . Fabricators . | . . . . Repair Stations . | . . . . Recycling Units . | . . . . Scanalyzers . | . . . . Garrison Access . | . . . . Total Hacks 6 | . 6 . . Successful 3 | . 3 . . Failed 3 | . 3 . . Catastrophic 2 | . 2 . . Database Lockouts . | . . . . Manual 6 | . 5 . 1 Terminals 6 | . 6 . . Fabricators . | . . . . Repair Stations . | . . . . Recycling Units . | . . . . Scanalyzers . | . . . . Garrison Access . | . . . . Terminal Hacks 2 | . 2 . . Terminal Index 1 | . 1 . . Recall Reinforcements 1 | . 1 . . Fabricator Hacks . | . . . . Repair Station Hacks . | . . . . Recycling Unit Hacks . | . . . . Scanalyzer . | . . . . Garrison Access Hacks . | . . . . Unauthorized Hacks 3 | . 3 . . Terminals 1 | . 1 . . Botnet 1 | . 1 . . Fabricators . | . . . . Repair Stations . | . . . . Recycling Units . | . . . . Scanalyzers . | . . . . Garrison Access . | . . . . Data Cores Recovered . | . . . . Used . | . . . . Hacking Detections 2 | . 2 . . Full Trace Events 2 | . 2 . . Feedback Events 1 | . 1 . . Corruption 1 | . 1 . . Feedback Blocked . | . . . . Robot Schematics Acquired . | . . . . Robots Built . | . . . . Matter . | . . . . Time . | . . . . Total Robot Build Rating . | . . . . Part Schematics Acquired . | . . . . Parts Built . | . . . . Matter . | . . . . Time . | . . . . Total Part Build Rating . | . . . . Parts Repaired . | . . . . Time . | . . . . Parts Recycled . | . . . . Recycled Matter . | . . . . Retrieved Matter . | . . . . Retrieved Components . | . . . . Parts Scanalyzed . | . . . . Part Schematics Acquired . | . . . . Parts Damaged . | . . . . Bothacking | -11 -10 -10 -10 ------------ Run | Scr Mat Min Exi Used RIF Installer . | . . . . Robots Hacked . | . . . . Non-combat . | . . . . Combat . | . . . . Robot Hacks Applied . | . . . . Relay Couplers Released . | . . . . Robots Rewired . | . . . . Allies Hacked . | . . . . Hacks Repelled . | . . . . Allies | -11 -10 -10 -10 -------- Run | Scr Mat Min Exi Total Allies . | . . . . Largest Group . | . . . . Highest-Rated Group . | . . . . Highest-Rated Ally . | . . . . Total Orders . | . . . . Ally Attacks . | . . . . Total Damage . | . . . . Kills . | . . . . Allies Corrupted . | . . . . Allies Melted . | . . . . Intel | -11 -10 -10 -10 ------- Run | Scr Mat Min Exi Robot Analysis Total . | . . . . Derelict Logs Recovered 1 | . . 1 . Drone Launches . | . . . . Drone Recoveries . | . . . . Exploration | -11 -10 -10 -10 ------------- Run | Scr Mat Min Exi Turns Passed 2836 | 114 1268 783 671 Spaces Moved 1333 | 67 567 398 301 Core 19 | 13 . . 6 Treads 1260 | . 567 398 295 Legs 54 | 54 . . . Wheels . | . . . . Hover . | . . . . Flight . | . . . . Fastest Speed 50 | 50 160 180 180 Average Speed 178 | 106 172 180 203 Slowest Speed 1200 | 120 200 180 1200 Overloaded Moves . | . . . . Propulsion Burnouts . | . . . . Robots Hopped . | . . . . Cave-ins Triggered . | . . . . Exploration Rate (%) 49 | 6 86 52 54 Regions Visited 3 Branch Regions 2 Pre-discovered Areas 2 | . . 2 . Known Exits Taken . | . . . . Unknown Exits Taken 3 | 1 1 1 . Scrap Searched 1 | . . 1 . Spaces Dug . | . . . . Terrain Destroyed 75 | . 40 5 30 Melee . | . . . . Projectile 9 | . 2 5 2 AOE 66 | . 38 . 28 Actions | -11 -10 -10 -10 --------- Run | Scr Mat Min Exi Total 1631 | 92 754 427 358 Wait 59 | . 49 . 10 Move 1330 | 66 566 397 301 Hop . | . . . . Pick Up 65 | 10 35 4 16 Fast Attach 9 | 4 4 . 1 Attach 15 | 3 5 . 7 Detach 1 | . . . 1 Swap 21 | . 17 1 3 Drop 36 | 1 16 5 14 Fire 94 | 8 61 20 5 Melee . | . . . . Ram . | . . . . Kick . | . . . . Crush 1 | . 1 . . Escape Stasis . | . . . . Rewire . | . . . . Trap . | . . . . Miscellaneous . | . . . . Route ------- -11/Scrapyard -10/Materials (discovered 3 exits: [*Mat x2] / [*Min]) -10/Mines (discovered 2 exits: [*Mat] / *Exi) -10/Exiles History --------- Turn | Location | Event 2 | -11/Scrapyard | Discovered new exit (range 16) 115 | -11/Scrapyard | Entered Materials 244 | -10/Materials | Discovered new exit (range 10) 305 | -10/Materials | Build established: Mutant 1043 | -10/Materials | Discovered new exit (range 16) 1193 | -10/Materials | Build established: Hauler-Mutant 1332 | -10/Materials | Discovered new exit (range 15) 1383 | -10/Materials | Entered Mines 1432 | -10/Mines | Met a Derelict bent on vengeance 1505 | -10/Mines | Learned location of Storage (-9) 2117 | -10/Mines | Learned location of Zion (-7) 2125 | -10/Mines | Discovered new exit (range 10) 2159 | -10/Mines | Deemed a non-threat by the Exiles lab entrance 2159 | -10/Mines | Discovered new exit (range 5) 2166 | -10/Mines | Entered Exiles 2213 | -10/Exiles | Met 8R-AWN 2244 | -10/Exiles | Met EX-HEX 2377 | -10/Exiles | Met EX-BIN 2397 | -10/Exiles | Aligned with FarCom system 2399 | -10/Exiles | Given EX-Vault access code 2440 | -10/Exiles | Opened EX-Vault 2451 | -10/Exiles | Found Prototype Special Weapon 2452 | -10/Exiles | Identified Field Lobotomy Kit 2456 | -10/Exiles | Found Prototype Storage 2457 | -10/Exiles | Identified Superbattery 2531 | -10/Exiles | Warned to stay clear of 0b10 Research branches 2532 | -10/Exiles | Exiles lab attacked by MAIN.C 2628 | -10/Exiles | Found Prototype Ballistic Gun 2684 | -10/Exiles | Identified AWS/Gauss 2700 | -10/Exiles | Core integrity fell below 50% 2704 | -10/Exiles | Core integrity fell below 20% 2742 | -10/Exiles | Lost 3 parts (1p2n) 2747 | -10/Exiles | Destroyed 12 combat bots 2837 | -10/Exiles | Destroyed by H-55 Commando with Gauss Rifle Last Messages --------------- 02744_ The unstable cave ceiling collapses. 02789_ Acquired Lgt. Treads. 02790_ The unstable cave ceiling collapses. 02806_ GD6YW D3=OSSDZ&%E1MV5V&/3HMXBR#TA269TC 02806_ Acquired 22 matter. 02807_ The unstable cave ceiling collapses. 02817_ Dropped Rocket Launcher. 02823_ Slug penetrates P-60 Hacker. 02824_ Destroyed Shock Rifle. 02825_ P-60 Hacker destroyed. 02826_ Penetrated by Slug. 02827_ Slug penetrates H-55 Commando. 02828_ H-55 Commando suffers critical hit. 02828_ Destroyed Gauss Rifle. 02833_ P-60 Hacker destroyed. 02834_ Penetrated by Slug. 02836_ Slug penetrates L-31 Rogue. 02837_ L-31 Rogue destroyed. 02837_ Machine disabled. 02837_ Penetrated by Slug. Map ----- +----------------------------------------------------+ | ????????????????????????????##"###??# #?#""""" | | ????????????????????????????? ??????# #?#""""" | | ????????????????????????????????????# #?#""""" | | ???????????????????????????????????## ###"" "" | | ???????????????????????????????????#" "" | | ???????????????????????????????????#" " | | ???????????????????????????????????# " | | ???????????????????????????????????# " | | ???????????????????????????????????# " | | ???????????????????????????????????# ] " | | ??????????????????????? ???????????## ] " | | ??????????????????????" ???????????# " | | ??????????????????????" ???????????# "X" " | | ??????????????????????" ???????????# """ | | ?????????????????????? ???????????# """"""" | | ??????????????????????" ??????????## ! ####### | | ??????????????????????# ?????????##""% ##?? | | ??????????????#?????### ###?######"" ! # # #?? | | ???????????? """#####X# #"###"""""" *## ##?? | | ???????????? """""" " "" % # ##?# | | ???????????? "" """ " ##" | | ??????????? " " " | | ??????????? | | ???????????# [ | | ????????????# % = | | ?????????????# @ = ! %= | | ??????????????#" ]] * =| | | ??????????????#""" ] ] % | | ??????????????#" ]#### | | ?????????????#" ""##??# | | ?????????????#"" """##???########""" | | ??????????????" ""##??????????##"""" | | ????????????? ""#???????????##"" | | ?????????????" % ##?####???####"""" | | ?????????????"" ## ####""" | | ??????????????" """" | | ??????????????"" | | ???????????????""" | | ????????????????? | | ??????????????????? " "" | | ??????????????????????!g ""## ##""" " " | | ???????????????????????? ""???# ######""" | | ?????????????????????????????????????# #????###"" | | ????????????????????????????????????## ####???### | | ????????????????????????????????????#! "!#?????? | | ????????????????????????????????????#" !!]#?????? | | ????????????????????????????????????#" !"#?????? | | ????????????????????????????????????#!!"" "#?????? | | ????????????????????????????????????########?????? | | ?????????????????????????????????????????????????? | +----------------------------------------------------+ Best States ------------- Heat Dissipation 25 Energy Generation 14 Energy Capacity 250 Matter Stores 300 Matter Capacity 300 Sight Range 16 Terrain Scan Density 10 Evasion (%) 50 Recoil Reduction 2 Item Schematics ----------------- None Robot Schematics ------------------ None Fabricated ------------ Nothing Alien Tech Used ----------------- None Achievements -------------- None Challenges ------------ None Game ------ Seed SpectralAntigravWheel Manual? 0 Play Time 00:21:08 Cumulative 85.8 hours Start 2019.11.01 @ 16:12:44 End 2019.11.01 @ 16:34:09 Sessions 1 Manual Loads 0 Difficulty Rogue Special Mode None Game No. 134 Rogue 134 Adventurer 0 Explorer 0 Win Type - Total 0 Types 0/0/0/0/0/0/0 Lore% 30 Gallery% 43 Achievement% 31 Wizard Run 0 Options --------- ASCII 0 Keyboard 0 Movement Mouse Keybinds 0 Fullscreen 1 Font 18/SmallcapsGlow Map View 76x50 Tactical HUD 1 Map Filters NONE Filters NONE Steam 1 RUN: 28efeca5-bc87-43db-b8ec-81f826b605ed